bitfinex/quotes_SOLUSD_20250514
["timestamp","ask_amount","ask_price","bid_price","bid_amount"]
[1747253498086,22.74162991,176.72,176.71,1.23923691]
[1747253501291,16.59119847,176.72,176.71,1.23923691]
[1747253506698,5.65866908,176.72,176.71,1.23923691]
[1747253507287,31.22515566,176.73,176.71,1.23923691]
[1747253507601,31.22515566,176.73,176.72,1.23923691]
[1747253508984,36.88350455,176.73,176.72,1.23923691]
[1747253512815,19.80422112,176.73,176.72,1.23923691]
[1747253512982,5.65834889,176.73,176.72,1.23923691]
[1747253516387,5.65802874,176.74,176.72,1.23923691]
[1747253516587,5.65802874,176.74,176.73,1.23923691]
[1747253522419,22.73731217,176.74,176.73,1.23923691]
[1747253525402,5.65802874,176.74,176.73,1.23923691]
[1747253528904,22.73731217,176.74,176.73,1.23923691]
[1747253529218,22.73731217,176.74,176.72,1.23923691]
[1747253529520,16.5911978,176.74,176.73,1.23923691]
[1747253531723,5.65802874,176.74,176.73,1.23923691]
[1747253538341,5.65770862,176.75,176.73,1.23923691]
[1747253538724,5.65770862,176.75,176.74,1.23923691]
[1747253539933,22.73169109,176.76,176.74,1.23923691]
[1747253541341,22.73169109,176.76,176.75,1.23923691]
[1747253547134,5.65738854,176.76,176.75,1.23923691]
[1747253549022,19.80001002,176.77,176.75,1.23923691]
[1747253549952,19.80001002,176.77,176.76,1.23923691]
[1747253553344,10.92448171,176.78,176.76,1.23923691]
[1747253554222,10.92448171,176.78,176.77,1.23923691]
[1747253555140,16.58123021,176.78,176.77,1.23923691]
[1747253557014,5.6567485,176.78,176.77,1.23923691]
[1747253559347,5.65642853,176.79,176.77,1.23923691]
[1747253559644,5.65642853,176.79,176.78,1.23923691]
[1747253562332,16.58091024,176.79,176.78,1.23923691]
[1747253567130,14.14027149,176.8,176.78,1.23923691]
[1747253567131,19.79638008,176.8,176.78,1.23923691]
[1747253567340,10.92448171,176.79,176.78,1.23923691]
[1747253568453,16.58091024,176.79,176.78,1.23923691]
[1747253572770,42.58091024,176.79,176.78,1.23923691]
[1747253576142,26.0,176.78,176.77,1.23923691]
[1747253576359,36.92448171,176.78,176.77,1.23923691]
[1747253577871,19.79749985,176.79,176.77,1.23923691]
[1747253578081,10.92448171,176.78,176.77,1.23923691]
[1747253578271,16.58123021,176.78,176.77,1.23923691]
[1747253580089,16.58123021,176.78,176.76,1.23923691]
[1747253580267,10.92448171,176.77,176.76,1.23923691]
[1747253580677,36.92448171,176.77,176.75,1.23923691]
[1747253581060,10.92448171,176.76,176.75,1.23923691]
[1747253582365,16.58187025,176.76,176.75,1.23923691]
[1747253582676,16.58187025,176.76,176.71,1.23923691]
[1747253582875,10.92448171,176.72,176.71,1.23923691]
[1747253583693,10.92448171,176.72,176.69,1.23923691]
[1747253583878,26.0,176.73,176.7,1.23923691]
[1747253584094,10.92448171,176.71,176.7,1.23923691]
[1747253584799,16.58347101,176.71,176.7,1.23923691]
[1747253585270,22.74589237,176.71,176.7,1.23923691]
[1747253585462,22.74589237,176.71,176.69,1.23923691]
[1747253585660,17.08690307,176.7,176.69,1.23923691]
[1747253586299,22.74621263,176.7,176.67,1.23923691]
[1747253586604,17.08690307,176.68,176.67,1.23923691]
[1747253586769,17.08690307,176.68,176.66,1.23923691]
[1747253586968,17.08690307,176.67,176.66,1.23923691]
[1747253588206,43.08690307,176.67,176.64,1.23923691]
[1747253588366,26.0,176.64,176.61,1.23923691]
[1747253588566,17.08690307,176.62,176.61,1.23923691]
[1747253589793,19.81206837,176.66,176.64,1.23923691]
[1747253590108,19.81206837,176.66,176.65,1.23923691]
[1747253590109,5.66059096,176.66,176.65,1.23923691]
[1747253590285,5.65995019,176.68,176.65,1.23923691]
[1747253590609,5.65995019,176.68,176.67,1.23923691]
[1747253594681,5.6589893,176.71,176.7,1.23923691]
[1747253596109,19.80583652,176.72,176.7,1.23923691]
[1747253596293,19.80583652,176.72,176.71,1.23923691]
[1747253597388,5.65866908,176.72,176.71,1.23923691]
[1747253598210,5.65834889,176.73,176.71,1.23923691]
[1747253598916,5.65834889,176.73,176.72,1.23923691]
[1747253617118,5.65802874,176.74,176.72,1.23923691]
[1747253617738,5.65802874,176.74,176.73,1.23923691]
[1747253619432,25.07289426,176.75,176.73,1.23923691]
[1747253619630,14.14468326,176.75,176.73,1.23923691]
[1747253619810,25.07289426,176.75,176.73,1.23923691]
[1747253620338,30.73060288,176.75,176.74,1.23923691]
[1747253623036,14.14468326,176.75,176.74,1.23923691]
[1747253625433,19.80239188,176.75,176.74,1.23923691]
[1747253634328,5.65738854,176.76,176.75,1.23923691]
[1747253634641,5.65738854,176.76,176.75,12.16697909]
[1747253634816,5.65738854,176.76,176.75,1.23923691]
[1747253636741,5.6570685,176.77,176.75,1.23923691]
[1747253637346,5.6570685,176.77,176.76,1.23923691]
[1747253638047,5.6570685,176.77,176.75,12.16697909]
[1747253638241,5.6570685,176.77,176.76,1.23923691]
[1747253643346,14.13993389,176.81,176.8,1.23923691]
[1747253643551,19.79572258,176.81,176.8,1.23923691]
[1747253646357,30.72346476,176.81,176.8,1.23923691]
[1747253646558,30.72346476,176.81,176.79,1.23923691]
[1747253646741,19.79572258,176.81,176.8,1.23923691]
[1747253647055,30.72346476,176.81,176.8,1.23923691]
[1747253647234,26.0,176.79,176.78,1.23923691]
[1747253647434,42.58417071,176.79,176.78,1.23923691]
[1747253649334,48.72668489,176.79,176.78,1.23923691]
[1747253650336,48.72668489,176.79,176.77,1.23923691]
[1747253650531,22.72700486,176.78,176.77,1.23923691]
[1747253652742,5.6567485,176.78,176.77,1.23923691]
[1747253655868,22.72700486,176.78,176.77,1.23923691]
[1747253657364,22.72700486,176.78,176.76,1.23923691]
[1747253657575,5.6567485,176.78,176.77,1.23923691]
[1747253657768,22.72700486,176.78,176.77,1.23923691]
[1747253659236,26.0,176.76,176.75,1.23923691]
[1747253660341,43.07025636,176.76,176.75,1.23923691]
[1747253660569,26.0,176.76,176.75,1.23923691]
[1747253661649,31.65738854,176.76,176.75,1.23923691]
[1747253665986,17.07025636,176.77,176.75,1.23923691]
[1747253665987,5.6570685,176.77,176.75,1.23923691]
[1747253666148,5.6570685,176.77,176.76,1.23923691]
[1747253668475,31.21212446,176.79,176.76,1.23923691]
[1747253668476,5.6567485,176.78,176.76,1.23923691]
[1747253669171,5.6567485,176.78,176.77,1.23923691]
[1747253670128,30.72197226,176.79,176.78,1.23923691]
[1747253672759,19.79829663,176.79,176.78,1.23923691]
[1747253672959,30.72197226,176.79,176.78,1.23923691]
[1747253675807,19.79829663,176.79,176.78,1.23923691]
[1747253676885,5.65642853,176.79,176.78,12.16291254]
[1747253678076,5.65578869,176.81,176.78,1.23923691]
[1747253678271,16.57946432,176.81,176.8,1.23923691]
[1747253680408,5.65578869,176.81,176.8,1.23923691]
[1747253681927,19.79463478,176.82,176.8,1.23923691]
[1747253682992,19.79463478,176.82,176.81,1.23923691]
[1747253684314,30.71831041,176.82,176.81,1.23923691]
[1747253689820,19.79463478,176.82,176.81,1.23923691]
[1747253693805,5.65514901,176.83,176.81,1.23923691]
[1747253694103,5.65514901,176.83,176.79,10.92367563]
[1747253694104,5.65514901,176.83,176.82,1.23923691]
[1747253698031,5.65482922,176.84,176.82,1.23923691]
[1747253698403,5.65482922,176.84,176.83,1.23923691]
[1747253702141,5.65482922,176.84,176.83,12.16291254]
[1747253702428,19.78808393,176.88,176.87,1.23923691]
[1747253703402,5.65355042,176.88,176.87,12.16291254]
[1747253704031,19.78442358,176.91,176.87,12.16291254]
[1747253704220,19.78442358,176.91,176.9,1.23923691]
[1747253704640,19.78442358,176.91,176.89,1.23923691]
[1747253704819,19.78442358,176.91,176.9,1.23923691]
[1747253705510,30.70809921,176.91,176.9,1.23923691]
[1747253705716,19.78442358,176.91,176.9,1.23923691]
[1747253706011,14.13183187,176.91,176.9,1.23923691]
[1747253710238,10.92367563,176.92,176.9,1.23923691]
[1747253711021,10.92367563,176.92,176.91,1.23923691]
[1747253712558,5.65227221,176.92,176.91,1.23923691]
[1747253715062,16.57594784,176.92,176.91,1.23923691]
[1747253715271,26.0,176.89,176.87,1.23923691]
[1747253715441,10.92367563,176.88,176.85,1.23923691]
[1747253715763,10.92367563,176.86,176.85,1.23923691]
[1747253716255,10.92367563,176.88,176.86,1.23923691]
[1747253716455,10.92367563,176.88,176.87,1.23923691]
[1747253716656,36.92367563,176.89,176.88,1.23923691]
[1747253717245,48.70421021,176.89,176.88,1.23923691]
[1747253717429,22.70421021,176.89,176.88,1.23923691]
[1747253718159,5.65323082,176.89,176.88,1.23923691]
[1747253723047,5.65291124,176.9,176.88,1.23923691]
[1747253723250,5.65291124,176.9,176.89,1.23923691]
[1747253724461,22.70389063,176.9,176.89,1.23923691]
[1747253726502,22.70389063,176.9,176.88,1.23923691]
[1747253726710,5.65291124,176.9,176.89,1.23923691]
[1747253726877,22.70389063,176.9,176.89,1.23923691]
[1747253732211,22.70389063,176.9,176.88,1.23923691]
[1747253732389,17.05097939,176.89,176.88,1.23923691]
[1747253733905,17.05097939,176.89,176.87,1.23923691]
[1747253733906,22.70421021,176.89,176.87,1.23923691]
[1747253734109,19.78630787,176.89,176.88,1.23923691]
[1747253735220,36.83728726,176.89,176.88,1.23923691]
[1747253735817,36.83728726,176.89,176.82,17.05097939]
[1747253735818,36.83728726,176.89,176.87,1.23923691]
[1747253736112,17.05097939,176.88,176.87,1.23923691]
[1747253736608,17.05097939,176.88,176.86,1.23923691]
[1747253736909,17.05097939,176.87,176.85,1.23923691]
[1747253737107,19.78630787,176.89,176.85,1.23923691]
[1747253737108,17.05097939,176.86,176.85,1.23923691]
[1747253738107,5.65418975,176.86,176.85,1.23923691]
[1747253739918,22.70516914,176.86,176.85,1.23923691]
[1747253744128,26.0,176.83,176.82,1.23923691]
[1747253744302,43.05097939,176.83,176.82,1.23923691]
[1747253745529,48.7061284,176.83,176.81,1.23923691]
[1747253745734,31.65514901,176.83,176.82,1.23923691]
[1747253745897,48.7061284,176.83,176.82,1.23923691]
[1747253748430,5.65514901,176.83,176.82,1.23923691]
[1747253750821,17.05097939,176.83,176.82,1.23923691]
[1747253751804,22.70580861,176.84,176.83,1.23923691]
[1747253756034,36.84288167,176.84,176.81,1.23923691]
[1747253756208,17.05097939,176.82,176.81,1.23923691]
[1747253756634,17.05097939,176.82,176.8,1.23923691]
[1747253756932,17.05097939,176.81,176.8,1.23923691]
[1747253757743,22.70676808,176.81,176.8,1.23923691]
[1747253758407,5.65578869,176.81,176.8,1.23923691]
[1747253761921,56.71548124,176.81,176.8,1.23923691]
[1747253763330,62.86339731,176.81,176.8,1.23923691]
[1747253763837,62.86339731,176.81,176.79,1.23923691]
[1747253764039,62.86339731,176.81,176.75,17.06813688]
[1747253764040,17.06813688,176.8,176.77,1.23923691]
[1747253764240,17.06813688,176.78,176.77,1.23923691]
[1747253764927,17.06813688,176.78,176.76,1.23923691]
[1747253765110,17.06813688,176.77,176.76,1.23923691]
[1747253766442,5.6570685,176.77,176.76,1.23923691]
[1747253766643,5.6570685,176.77,176.76,18.30737379]
[1747253768650,45.79638008,176.8,176.79,1.23923691]
[1747253768862,19.79638008,176.8,176.79,1.23923691]
[1747253771049,36.86451696,176.8,176.79,1.23923691]
[1747253773458,36.86451696,176.8,176.76,1.23923691]
[1747253773622,17.06813688,176.78,176.76,1.23923691]
[1747253774028,17.06813688,176.78,176.77,1.23923691]
[1747253774740,36.86451696,176.8,176.77,1.23923691]
[1747253775056,36.86451696,176.8,176.79,1.23923691]
[1747253775761,19.79638008,176.8,176.79,18.30737379]
[1747253776135,5.65610859,176.8,176.79,18.30737379]
[1747253777869,19.79357923,176.83,176.79,18.30737379]
[1747253778046,19.79357923,176.83,176.81,17.06813688]
[1747253778456,19.79357923,176.83,176.82,1.23923691]
[1747253778627,36.86171611,176.83,176.8,1.23923691]
[1747253778839,19.79357923,176.83,176.82,1.23923691]
[1747253779266,19.79357923,176.83,176.8,1.23923691]
[1747253779559,45.79357923,176.83,176.82,1.23923691]
[1747253779947,62.86171611,176.83,176.82,1.23923691]
[1747253782565,62.86171611,176.83,176.8,1.23923691]
[1747253782869,62.86171611,176.83,176.82,1.23923691]
[1747253783374,62.86171611,176.83,176.8,1.23923691]
[1747253783540,45.79357923,176.83,176.82,1.23923691]
[1747253783739,62.86171611,176.83,176.82,1.23923691]
[1747253784062,45.79357923,176.83,176.82,1.23923691]
[1747253784265,19.79357923,176.83,176.82,1.23923691]
[1747253785542,14.13843022,176.83,176.82,1.23923691]
[1747253788178,31.2065671,176.83,176.82,1.23923691]
[1747253788546,31.2065671,176.83,176.81,1.23923691]
[1747253788752,17.06813688,176.82,176.81,1.23923691]
[1747253789045,22.72360571,176.82,176.81,1.23923691]
[1747253789870,5.65546883,176.82,176.81,1.23923691]
[1747253791259,31.2065671,176.83,176.81,1.23923691]
[1747253791464,31.2065671,176.83,176.82,1.23923691]
[1747253792877,36.86171611,176.83,176.82,1.23923691]
[1747253798084,19.79357923,176.83,176.82,1.23923691]
[1747253798262,45.79357923,176.83,176.82,1.23923691]
[1747253803800,5.65514901,176.83,176.82,18.30737379]
[1747253804404,5.65514901,176.83,176.82,1.23923691]
[1747253804574,14.13567438,176.86,176.85,1.23923691]
[1747253807290,19.78986413,176.86,176.85,1.23923691]
[1747253811398,5.65418975,176.86,176.85,1.23923691]
[1747253814999,5.65418975,176.86,176.85,18.30737379]
[1747253815710,5.65387002,176.88,176.85,18.30737379]
[1747253816015,5.65387002,176.88,176.87,17.06813688]
[1747253816630,14.13361951,176.89,176.88,1.23923691]
[1747253821005,31.20175639,176.89,176.88,1.23923691]
[1747253822930,36.85498721,176.89,176.88,1.23923691]
[1747253825027,17.06813688,176.9,176.88,1.23923691]
[1747253826314,22.72104812,176.9,176.89,1.23923691]
[1747253833037,26.0,176.88,176.87,1.23923691]
[1747253833234,43.06813688,176.88,176.87,1.23923691]
[1747253833911,48.7216873,176.88,176.87,1.23923691]
[1747253834938,5.65355042,176.88,176.87,1.23923691]
[1747253835625,17.06813688,176.88,176.87,1.23923691]
[1747253838039,22.7216873,176.88,176.87,1.23923691]
[1747253839619,5.65355042,176.88,176.87,1.23923691]
[1747253842150,5.65323082,176.89,176.87,1.23923691]
[1747253842449,5.65323082,176.89,176.88,18.30737379]
[1747253844353,14.13227812,176.9,176.88,18.30737379]
[1747253844653,5.65259171,176.91,176.9,1.23923691]
[1747253845155,5.65259171,176.91,176.9,18.30737379]
[1747253845326,5.65259171,176.91,176.9,1.23923691]
[1747253846962,19.78239355,176.93,176.9,1.23923691]
[1747253847148,19.78239355,176.93,176.92,1.23923691]
[1747253849333,14.13044081,176.93,176.92,1.23923691]
[1747253851869,31.19857769,176.93,176.92,1.23923691]
[1747253852757,36.85053043,176.93,176.92,1.23923691]
[1747253853766,19.78239355,176.93,176.92,1.23923691]
[1747253863873,5.65195274,176.93,176.92,1.23923691]
[1747253865566,5.65163332,176.94,176.92,1.23923691]
[1747253866070,5.65163332,176.94,176.93,1.23923691]
[1747253868574,5.65131393,176.95,176.93,1.23923691]
[1747253868749,5.65131393,176.95,176.94,12.14268536]
[1747253869656,5.65131393,176.95,176.94,1.23923691]
[1747253870674,5.65099457,176.96,176.94,1.23923691]
[1747253871645,5.65099457,176.96,176.95,1.23923691]
[1747253873255,16.55444302,176.96,176.95,1.23923691]
[1747253874978,10.90344845,176.96,176.95,1.23923691]
[1747253875270,17.03649722,176.96,176.95,1.23923691]
[1747253876878,22.68749179,176.96,176.95,1.23923691]
[1747253881693,58.37363787,176.96,176.95,1.23923691]
[1747253882082,41.33714065,176.96,176.95,1.23923691]
[1747253882597,22.68749179,176.96,176.95,1.23923691]
[1747253882975,5.65099457,176.96,176.95,1.23923691]
[1747253883276,22.68717247,176.97,176.96,1.23923691]
[1747253887916,5.65067525,176.97,176.96,1.23923691]
[1747253888092,5.65067525,176.97,176.96,18.27573413]
[1747253889986,5.64939833,177.01,176.96,18.27573413]
[1747253890308,5.64939833,177.01,177.0,1.23923691]
[1747253893977,5.64939833,177.01,177.0,18.27573413]
[1747253894180,5.64844103,177.04,177.03,1.23923691]
[1747253894783,19.76894253,177.05,177.03,1.23923691]
[1747253894980,19.76894253,177.05,177.04,1.23923691]
[1747253896595,14.12082054,177.05,177.04,1.23923691]
[1747253897685,5.647803,177.06,177.05,1.23923691]
[1747253898402,5.647803,177.06,177.05,18.27573413]
[1747253898698,19.76417979,177.09,177.05,18.27573413]
[1747253898910,19.76417979,177.09,177.06,17.03649722]
[1747253900596,19.76417979,177.09,177.08,1.23923691]
[1747253901794,19.76417979,177.09,177.08,18.27573413]
[1747253902090,19.76417979,177.09,177.08,1.23923691]
[1747253903006,14.11733356,177.09,177.08,1.23923691]
[1747253905292,19.76417979,177.09,177.08,1.23923691]
[1747253907231,14.11733356,177.09,177.08,1.23923691]
[1747253913622,31.15383078,177.09,177.08,1.23923691]
[1747253914425,36.80067701,177.09,177.08,1.23923691]
[1747253919304,36.80067701,177.09,177.07,1.23923691]
[1747253919539,17.03649722,177.08,177.07,1.23923691]
[1747253921133,22.68366234,177.08,177.07,1.23923691]
[1747253922756,5.64716512,177.08,177.07,1.23923691]
[1747253923357,19.76417979,177.09,177.08,1.23923691]
[1747253924024,36.80067701,177.09,177.08,1.23923691]
[1747253927241,25.00404384,177.09,177.08,1.23923691]
[1747253928451,30.65089007,177.09,177.08,1.23923691]
[1747253929045,19.76417979,177.09,177.08,1.23923691]
[1747253929251,30.65089007,177.09,177.08,1.23923691]
[1747253930849,25.00404384,177.09,177.08,1.23923691]
[1747253933349,30.65089007,177.09,177.08,1.23923691]
[1747253935663,14.11733356,177.09,177.08,1.23923691]
[1747253935824,25.00404384,177.09,177.08,1.23923691]
[1747253937652,56.65089007,177.09,177.08,1.23923691]
[1747253939250,56.65089007,177.09,177.07,1.23923691]
[1747253939432,10.88671028,177.08,177.07,1.23923691]
[1747253941557,16.5338754,177.08,177.07,1.23923691]
[1747253942567,16.5338754,177.08,177.06,1.23923691]
[1747253942734,10.88671028,177.07,177.06,1.23923691]
[1747253943760,16.53419432,177.07,177.06,1.23923691]
[1747253948640,5.64748404,177.07,177.06,1.23923691]
[1747253948833,5.64748404,177.07,177.06,12.12594719]
[1747253950286,19.76301133,177.1,177.06,12.12594719]
[1747253950439,30.64972161,177.1,177.09,1.23923691]
[1747253950764,19.76301133,177.1,177.09,1.23923691]
[1747253952054,14.11648395,177.1,177.09,1.23923691]
[1747253954161,19.76301133,177.1,177.09,1.23923691]
[1747253963005,30.64972161,177.1,177.09,1.23923691]
[1747253963363,30.64972161,177.1,177.08,1.23923691]
[1747253963673,26.0,177.08,177.06,1.23923691]
[1747253963968,26.0,177.08,177.05,1.23923691]
[1747253963969,10.88671028,177.07,177.05,1.23923691]
[1747253964269,26.0,177.07,177.06,1.23923691]
[1747253964584,31.64748404,177.07,177.06,1.23923691]
[1747253964951,5.64748404,177.07,177.06,1.23923691]
[1747253965252,16.53419432,177.07,177.06,1.23923691]
[1747253968271,16.53419432,177.07,177.06,0.73923691]
[1747253969754,5.64748404,177.07,177.06,0.73923691]
[1747253972369,16.53419432,177.07,177.06,0.73923691]
[1747253975891,5.64748404,177.07,177.06,0.73923691]
[1747253978502,5.64716512,177.08,177.07,0.73923691]
[1747253979583,5.64716512,177.08,177.07,11.62594719]
[1747253980466,19.76301133,177.1,177.07,0.73923691]
[1747253981908,19.76301133,177.1,177.09,0.73923691]
[1747253982702,14.11648395,177.1,177.09,0.73923691]
[1747253983201,25.00319423,177.1,177.09,0.73923691]
[1747253985505,30.64972161,177.1,177.09,0.73923691]
[1747253989711,28.14972161,177.1,177.09,0.73923691]
[1747253990311,28.14972161,177.1,177.08,0.73923691]
[1747253990524,10.88671028,177.09,177.08,0.73923691]
[1747253992511,16.53355651,177.09,177.08,0.73923691]
[1747253996022,5.64684623,177.09,177.08,0.73923691]
[1747254003052,5.64652738,177.1,177.08,0.73923691]
[1747254003340,5.64652738,177.1,177.09,0.73923691]
[1747254003725,16.53323766,177.1,177.09,0.73923691]
[1747254003915,16.53323766,177.1,177.08,0.73923691]
[1747254004121,10.88671028,177.09,177.08,0.73923691]
[1747254004720,16.53355651,177.09,177.08,0.73923691]
[1747254012740,16.53355651,177.09,177.07,0.73923691]
[1747254013055,10.88671028,177.08,177.06,0.73923691]
[1747254013356,10.88671028,177.07,177.06,0.73923691]
[1747254013852,16.53419432,177.07,177.06,0.73923691]
[1747254018460,42.53419432,177.07,177.06,0.73923691]
[1747254021057,45.76619415,177.07,177.0,17.96]
[1747254021256,10.88671028,177.06,177.02,10.88671028]
[1747254021451,56.65290443,177.07,177.02,10.88671028]
[1747254021662,56.65290443,177.07,177.03,10.88671028]
[1747254024270,56.65290443,177.07,176.99,82.9]
[1747254024444,10.88671028,177.06,177.02,10.88671028]
[1747254025355,10.88671028,177.06,177.01,28.84671028]
[1747254025949,10.88671028,177.06,177.01,17.96]
[1747254026147,10.88671028,177.06,177.01,28.84671028]
[1747254026349,19.76842698,177.05,177.01,28.84671028]
[1747254028672,19.76842698,177.05,177.02,10.88671028]
[1747254031176,19.76842698,177.05,177.01,28.84671028]
[1747254031659,30.65513726,177.05,176.99,82.9]
[1747254031865,19.76842698,177.05,176.98,111.74671028]
[1747254032060,10.88671028,177.02,176.98,100.86]
[1747254032267,19.76842698,177.05,176.97,10.88671028]
[1747254032268,10.88671028,177.01,176.97,82.9]
[1747254032478,10.88671028,177.01,176.97,111.74671028]
[1747254032650,10.88671028,177.01,176.97,100.86]
[1747254032845,10.88671028,177.0,176.97,82.9]
[1747254033252,5.65003672,176.99,176.97,82.9]
[1747254033769,16.536747,176.99,176.97,82.9]
[1747254033959,5.65003672,176.99,176.97,82.9]
[1747254035671,30.66183881,176.99,176.95,17.96]
[1747254035876,30.66183881,176.99,176.95,28.84671028]
[1747254036076,30.66183881,176.99,176.95,10.88671028]
[1747254036285,10.88671028,176.98,176.94,17.96]
[1747254036581,10.88671028,176.97,176.93,28.84671028]
[1747254036752,10.88671028,176.98,176.94,10.88671028]
[1747254036947,5.65067525,176.97,176.94,10.88671028]
[1747254038656,30.66407366,176.97,176.93,10.88671028]
[1747254041062,19.77736338,176.97,176.94,10.88671028]
[1747254041262,19.77736338,176.97,176.93,10.88671028]
[1747254041459,19.77736338,176.97,176.94,10.88671028]
[1747254043181,14.12668813,176.97,176.94,10.88671028]
[1747254044183,5.65035597,176.98,176.96,10.88671028]
[1747254045283,19.77449125,177.0,176.96,10.88671028]
[1747254045461,19.77449125,177.0,176.97,10.88671028]
[1747254045861,19.77449125,177.0,176.98,28.84671028]
[1747254047385,10.88671028,177.02,176.98,28.84671028]
[1747254048988,5.64939833,177.01,176.98,28.84671028]
[1747254049775,5.64939833,177.01,176.99,10.88671028]
[1747254049998,5.64939833,177.01,177.0,10.88671028]
[1747254050176,16.53483227,177.05,177.0,10.88671028]
[1747254050378,16.53483227,177.05,177.01,10.88671028]
[1747254051271,22.66343191,177.05,177.01,17.01530992]
[1747254051785,5.64812199,177.05,177.02,17.01530992]
[1747254053372,5.64812199,177.05,177.03,17.01530992]
[1747254053577,5.64812199,177.05,177.04,34.97530992]
[1747254053779,5.64716512,177.08,177.04,34.97530992]
[1747254054070,5.64716512,177.08,177.05,17.01530992]
[1747254055074,5.64716512,177.08,177.06,17.01530992]
[1747254055782,5.64652738,177.1,177.07,17.01530992]
[1747254055977,5.64652738,177.1,177.09,17.01530992]
[1747254057192,5.64557104,177.13,177.09,17.01530992]
[1747254057390,5.64557104,177.13,177.1,34.95530992]
[1747254057771,19.75777949,177.15,177.11,17.01530992]
[1747254057974,19.75777949,177.15,177.12,17.01530992]
[1747254060200,19.75777949,177.15,177.13,17.01530992]
[1747254060498,5.64493367,177.15,177.14,17.01530992]
[1747254062479,14.1104893,177.18,177.14,17.01530992]
[1747254062797,14.1104893,177.18,177.15,17.01530992]
[1747254064895,5.64365934,177.19,177.16,17.01530992]
[1747254065297,5.64365934,177.19,177.16,34.95530992]
[1747254065597,5.64365934,177.19,177.18,17.01530992]
[1747254066579,14.10804067,177.21,177.18,17.01530992]
[1747254066894,5.64270398,177.22,177.2,17.01530992]
[1747254068000,19.74763781,177.24,177.2,17.01530992]
[1747254069306,19.74763781,177.24,177.22,17.01530992]
[1747254069607,5.64206725,177.24,177.22,17.01530992]
[1747254069774,5.64206725,177.24,177.23,17.01530992]
[1747254070082,5.64143066,177.26,177.23,17.01530992]
[1747254070276,5.64143066,177.26,177.24,17.01530992]
[1747254071095,5.64143066,177.26,177.23,17.01530992]
[1747254072907,19.74436836,177.27,177.23,17.01530992]
[1747254073105,36.75967828,177.27,177.22,117.85530992]
[1747254075214,17.01530992,177.26,177.22,117.85530992]
[1747254075385,17.01530992,177.24,177.22,82.9]
[1747254075586,17.01530992,177.23,177.2,17.92]
[1747254075987,17.01530992,177.24,177.2,34.93530992]
[1747254076507,17.01530992,177.26,177.22,17.01530992]
[1747254076688,19.74436836,177.27,177.22,17.01530992]
[1747254076689,36.75967828,177.27,177.22,17.01530992]
[1747254077787,36.75967828,177.27,177.23,17.01530992]
[1747254080323,17.01530992,177.26,177.22,17.01530992]
[1747254081220,5.64174894,177.25,177.22,17.01530992]
[1747254081400,5.64174894,177.25,177.23,17.01530992]
[1747254082990,5.64143066,177.26,177.23,17.01530992]
[1747254083623,5.64143066,177.26,177.24,17.01530992]
[1747254083916,17.01530992,177.25,177.21,17.92]
[1747254084119,17.01530992,177.23,177.19,34.93530992]
[1747254084416,17.01530992,177.22,177.19,17.92]
[1747254084614,17.01530992,177.22,177.17,82.9]
[1747254084814,19.74500732,177.26,177.15,17.01530992]
[1747254084815,17.01530992,177.19,177.15,17.01530992]
[1747254085029,5.64397787,177.18,177.15,34.93530992]
[1747254086321,5.64397787,177.18,177.16,17.01530992]
[1747254086910,1.549,177.23,177.16,17.01530992]
[1747254086911,17.01530992,177.2,177.16,17.01530992]
[1747254088317,19.74946393,177.22,177.18,17.01530992]
[1747254088506,19.74946393,177.22,177.19,17.01530992]
[1747254089928,36.76477385,177.22,177.17,17.01530992]
[1747254090235,17.01530992,177.21,177.17,17.01530992]
[1747254090418,17.01530992,177.21,177.16,18.64964886]
[1747254090611,17.01530992,177.21,177.15,17.92]
[1747254090818,17.01530992,177.2,177.15,117.83530992]
[1747254091315,17.01530992,177.19,177.15,117.83530992]
[1747254091632,17.01530992,177.19,177.16,17.92]
[1747254091928,17.01530992,177.2,177.16,34.93530992]
[1747254092120,17.01530992,177.21,177.16,34.93530992]
[1747254093225,5.64334085,177.2,177.16,34.93530992]
[1747254093428,5.64334085,177.2,177.17,17.01530992]
[1747254094000,19.75169299,177.2,177.16,34.93530992]
[1747254094408,19.75169299,177.2,177.16,17.92]
[1747254094608,19.75169299,177.2,177.16,34.93530992]
[1747254097231,36.76700291,177.2,177.16,34.93530992]
[1747254099723,5.64334085,177.2,177.19,17.01530992]
[1747254101310,19.74896163,177.23,177.19,17.01530992]
[1747254102017,5.6423856,177.23,177.21,17.01530992]
[1747254103330,5.64174894,177.25,177.21,17.01530992]
[1747254103831,19.74612129,177.25,177.21,17.01530992]
[1747254105449,36.76143121,177.25,177.21,17.01530992]
[1747254105950,17.01530992,177.24,177.2,17.01530992]
[1747254106329,17.01530992,177.23,177.19,17.01530992]
[1747254107131,19.74612129,177.25,177.2,17.01530992]
[1747254107332,36.76143121,177.25,177.2,17.01530992]
[1747254107535,17.01530992,177.24,177.2,17.01530992]
[1747254109953,5.6423856,177.23,177.2,17.01530992]
[1747254110553,5.6423856,177.23,177.21,17.01530992]
[1747254110737,5.6423856,177.23,177.17,107.19390384]
[1747254110738,5.64143066,177.26,177.22,34.93530992]
[1747254110937,5.64143066,177.26,177.24,17.01530992]